fUSD/lending_fUSD_20241017
["ID","MTS","AMOUNT","RATE_DAILY","PERIOD"]
[340391271,1729171839272,-17803.6266,0.000107,2]
[340391272,1729171839290,-261.8447,0.000107,2]
[340391273,1729171839299,-2500.0,0.000107,2]
[340391274,1729171839309,-184.82226391,0.000107,2]
[340391275,1729171839318,-26840.20026881,0.000107,2]
[340391276,1729171839331,-1121.2757229,0.000107,2]
[340391277,1729171839342,-7361.00831661,0.000107,2]
[340391278,1729171839355,-1132.27771493,0.000107,2]
[340391279,1729171839367,-1187.01937675,0.000107,2]
[340391280,1729171839376,-1964.86771299,0.000107,2]
[340391281,1729171839388,-1743.66113836,0.000107,2]
[340391283,1729171840983,-779.69581707,0.000107,2]
[340391286,1729171840996,-1343.261202,0.000107,2]
[340391298,1729171841354,-2132.56412544,0.000107,2]
[340391299,1729171841367,-367.638,0.000107,2]
[340391309,1729171843974,-3208.36447909,0.000107,2]
[340391314,1729171844627,-564.563748,0.000107,2]
[340391315,1729171844639,-521.88,0.000107,2]
[340391318,1729171844652,-526.6052595,0.000107,2]
[340391322,1729171847235,-2793.990089,0.000107,2]
[340391337,1729171895302,45.27441029,0.00010184,2]
[340391338,1729171895324,154.50558971,0.00010184,2]
[340391344,1729171909827,360.0,0.00010145,2]
[340391345,1729171916598,285.49441029,0.00010097,2]
[340391346,1729171916622,214.50558971,0.00010097,2]
[340391347,1729171928582,45688.0,0.00027,60]
[340391348,1729171934095,1485.94790558,0.00025,120]
[340391349,1729171959269,402.8,8.219e-05,2]
[340391350,1729171972577,150.0,0.00010367,2]
[340391351,1729171982078,32.69441029,0.00010004,2]
[340391352,1729171982099,196.96558971,0.00010004,2]
[340391353,1729171983788,603.03441029,0.00010004,2]
[340391354,1729171983810,112.63558971,0.00010004,2]
[340391355,1729172120046,380.09,0.00010102,2]
[340391356,1729172124962,250.0,0.0001004,2]
[340391357,1729172126001,780.33,0.0001004,2]
[340391358,1729172140870,178.66,0.00010058,2]
[340391359,1729172177402,2470.19,0.00010058,2]
[340391360,1729172192704,151.09,0.00010014,2]
[340391361,1729172264444,717.82,0.00010052,2]
[340391363,1729172356711,16291.58,0.00010052,2]
[340391364,1729172356965,156.37,0.00010052,2]
[340391369,1729172447905,2768.09,0.00010093,2]
[340391370,1729172465198,250.0,0.00010013,2]
[340391371,1729172472377,712.0,0.00010013,2]
[340391372,1729172535140,382.66,8.219e-05,2]
[340391373,1729172572176,550.0,0.0001,2]
[340391374,1729172582888,800.0,0.00026986,120]
[340391375,1729172590967,300.0,0.00013799,120]
[340391376,1729172591155,300.0,0.00013899,120]
[340391377,1729172591717,300.0,0.00014512,120]
[340391378,1729172592014,300.0,0.00014999,120]
[340391379,1729172592053,300.0,0.00015309,120]
[340391380,1729172592134,300.0,0.00013799,120]
[340391381,1729172592264,503.289818,0.00026993,120]
[340391382,1729172592310,300.0,0.00013899,120]
[340391383,1729172592484,300.0,0.00014512,120]
[340391384,1729172592653,300.0,0.00014999,120]
[340391385,1729172592835,300.0,0.00015309,120]
[340391386,1729172593005,300.0,0.00013799,120]
[340391387,1729172593177,300.0,0.00013899,120]
[340391388,1729172593336,300.0,0.00014512,120]
[340391389,1729172593517,300.0,0.00014999,120]
[340391390,1729172593693,300.0,0.00015309,120]
[340391391,1729172593876,300.0,0.00013799,120]
[340391392,1729172594185,300.0,0.00013899,120]
[340391393,1729172594354,300.0,0.00014512,120]
[340391394,1729172594514,308.45881937,0.00014999,120]
[340391396,1729172597761,500.0,0.00026993,120]
[340391397,1729172601409,500.0,0.00026993,120]
[340391398,1729172604872,200.0,0.00026993,120]
[340391399,1729172605190,500.0,0.00027,60]
[340391400,1729172608145,500.0,0.00027,60]
[340391401,1729172611610,442.0,0.00027,60]
[340391402,1729172645403,-1207.44,0.00022137,30]
[340391403,1729172645430,-1585.12,0.00024,30]
[340391404,1729172651728,300.0,0.00013799,120]
[340391405,1729172651916,300.0,0.00013899,120]
[340391406,1729172652091,300.0,0.00014512,120]
[340391407,1729172652270,300.0,0.00014999,120]
[340391408,1729172652465,300.0,0.00015309,120]
[340391409,1729172652628,300.0,0.00013799,120]
[340391410,1729172652796,300.0,0.00013899,120]
[340391411,1729172653159,300.0,0.00014512,120]
[340391412,1729172653343,300.0,0.00014999,120]
[340391413,1729172653538,300.0,0.00015309,120]
[340391414,1729172653764,300.0,0.00013799,120]
[340391415,1729172653954,300.0,0.00013899,120]
[340391416,1729172654131,300.0,0.00014512,120]
[340391417,1729172654328,300.0,0.00014999,120]
[340391418,1729172654569,300.0,0.00015309,120]
[340391419,1729172654761,300.0,0.00013799,120]
[340391420,1729172654926,300.0,0.00013899,120]
[340391421,1729172655104,300.0,0.00014512,120]
[340391422,1729172655547,300.0,0.00014999,120]
[340391423,1729172655835,300.0,0.00015309,120]
[340391424,1729172655896,300.0,0.00013799,120]
[340391425,1729172656007,300.0,0.00013899,120]
[340391426,1729172656310,300.0,0.00014512,120]
[340391427,1729172656692,300.0,0.00014999,120]
[340391428,1729172656862,300.0,0.00015309,120]
[340391429,1729172657033,300.0,0.00013799,120]
[340391430,1729172657208,300.0,0.00013899,120]
[340391431,1729172657371,300.0,0.00014512,120]
[340391432,1729172657532,300.0,0.00014999,120]
[340391433,1729172657717,300.0,0.00015309,120]
[340391434,1729172657885,300.0,0.00013799,120]
[340391435,1729172658060,300.0,0.00013899,120]
[340391436,1729172658219,359.58000872,0.00014512,120]
[340391437,1729172669692,250.0,9.991e-05,2]
[340391438,1729172683477,500.0,0.00027,60]
[340391439,1729172685799,159.96724936,0.00027,60]
[340391440,1729172686110,153.39220842,0.00027,60]
[340391441,1729172702305,150.5,0.00013689,120]
[340391442,1729172702782,150.5,0.00013679,120]
[340391443,1729172703281,150.5,0.00013669,120]
[340391444,1729172703777,150.5,0.0001998,120]
[340391445,1729172704243,198.4,0.0001997,120]
[340391446,1729172710969,300.0,0.00013799,120]
[340391447,1729172711142,300.0,0.00013899,120]
[340391448,1729172711321,300.0,0.00014512,120]
[340391449,1729172711495,300.0,0.00014999,120]
[340391450,1729172711668,300.0,0.00015309,120]
[340391451,1729172711845,300.0,0.00013799,120]
[340391452,1729172748541,-382.66,0.00010476,2]
[340391453,1729172748574,-2264.6701,0.00010501,2]
[340391454,1729172748607,-150.0,0.00010575,2]
[340391455,1729172748636,-522.79243652,0.00010599,2]
[340391456,1729172748669,-150.0,0.00010599,2]
[340391457,1729172748700,-17803.6266,0.000106,2]
[340391458,1729172748730,-1306.9229,0.000106,2]
[340391459,1729172748761,-159.8569,0.000106,2]
[340391460,1729172748790,-2954.3327,0.000106,2]
[340391461,1729172748823,-177.5422,0.000106,2]
[340391462,1729172748854,-4161.5436,0.000106,2]
[340391463,1729172748884,-7293.7189,0.000106,2]
[340391464,1729172748914,-3767.351,0.000106,2]
[340391465,1729172748943,-1000.0,0.000106,2]
[340391466,1729172748974,-261.8447,0.000106,2]
[340391467,1729172749005,-2500.0,0.000106,2]
[340391468,1729172749035,-78220.03282855,0.000107,2]
[340391469,1729172749066,-5876.3556,0.000107,2]
[340391470,1729172749096,-442.9884,0.000107,2]
[340391471,1729172749126,-1000.0,0.000107,2]
[340391472,1729172749155,-37641.7814,0.000107,2]
[340391473,1729172749183,-27546.9536,0.000107,2]
[340391474,1729172749213,-475.3993,0.000107,2]
[340391475,1729172749242,-184463.62683493,0.000107,2]
[340391476,1729172778138,358.91,0.00010068,2]
[340391483,1729172825158,-300.0,0.00010599,2]
[340391484,1729172825180,-6184.21781905,0.000106,2]
[340391485,1729172837094,4922.6636,0.00010376,2]
[340391486,1729172838898,496.0,0.00027,60]
[340391487,1729172845358,475.0,0.00027,60]
[340391488,1729172851946,150.0,0.00027,60]
[340391489,1729172853969,500.0,0.00027,60]
[340391490,1729172856909,527.0,0.00027,60]
[340391491,1729172946640,800.0,0.00010189,2]
[340391492,1729172982649,250.0,0.00010126,2]
[340391493,1729172997245,500.0,0.00024931,120]
[340391494,1729172997541,500.0,0.00024931,120]
[340391495,1729172997854,500.0,0.00024931,120]
[340391496,1729172998176,500.0,0.00024931,120]
[340391497,1729172998482,500.0,0.00024931,120]
[340391498,1729172998744,500.0,0.00024931,120]
[340391499,1729172999059,500.0,0.00024931,120]
[340391501,1729172999356,541.33439609,0.00024931,120]
[340391503,1729173023208,455.0,0.00027,60]
[340391504,1729173031064,500.0,0.00027,60]
[340391505,1729173034110,-486.99460917,0.00010499,2]
[340391507,1729173034122,-1883.08329083,0.00010499,2]
[340391509,1729173034132,-150.0,0.00010599,2]
[340391511,1729173034141,-300.0,0.00010599,2]
[340391514,1729173034151,-30354.62828095,0.000106,2]
[340391517,1729173034160,-182.4143,0.000106,2]
[340391520,1729173034170,-100000.0,0.000106,2]
[340391523,1729173034181,-1000.0,0.000106,2]
[340391526,1729173034190,-1000.0,0.000106,2]
[340391529,1729173034200,-2500.0,0.000106,2]
[340391532,1729173034210,-1000.0,0.000106,2]
[340391534,1729173034219,-17803.6266,0.000106,2]
[340391536,1729173034229,-168.47321426,0.000106,2]
[340391538,1729173034239,-60536.37316507,0.000107,2]
[340391540,1729173034249,-974.69722414,0.000108,2]
[340391541,1729173034258,-7500.0,0.0001088,2]
[340391543,1729173034268,-190.90068575,0.00010892,2]
[340391545,1729173034277,-159.98264768,0.00010892,2]
[340391547,1729173034287,-7480.38243281,0.00010892,2]
[340391548,1729173034296,-6896.45354469,0.00010899,2]
[340391549,1729173034306,-3147.37571549,0.000109,2]
[340391550,1729173034320,-443.92047294,0.000109,2]
[340391551,1729173034329,-159.73915791,0.000109,2]
[340391552,1729173034340,-279.64286416,0.000109,2]
[340391553,1729173034350,-3250.19878666,0.000109,2]
[340391554,1729173034361,-499.99,0.000109,2]
[340391555,1729173034371,-156.7,0.00010959,2]
[340391556,1729173034381,-156.53,0.00010959,2]
[340391557,1729173034390,-183.45,0.00010959,2]
[340391558,1729173034400,-290.83,0.00010959,2]
[340391559,1729173034409,-459.14,0.00010959,2]
[340391560,1729173034419,-250.0,0.00010959,2]
[340391561,1729173034428,-179.56,0.00010959,2]
[340391562,1729173034438,-211.9,0.00010959,2]
[340391563,1729173034447,-176.58,0.00010959,2]
[340391564,1729173034457,-882.92,0.00010959,2]
[340391565,1729173034466,-154.67394876,0.0001097,2]
[340391566,1729173034476,-501.88029257,0.00010973,2]
[340391567,1729173034485,-500.0,0.00010973,2]
[340391568,1729173034495,-500.0,0.00010979,2]
[340391569,1729173034504,-632.73957406,0.00010979,2]
[340391570,1729173034514,-269.88444669,0.00010979,2]
[340391571,1729173034524,-500.0,0.00010979,2]
[340391572,1729173034533,-500.0,0.00010979,2]
[340391573,1729173034543,-500.0,0.00010979,2]
[340391574,1729173034552,-500.0,0.00010979,2]
[340391575,1729173034566,-444.69186588,0.00010979,2]
[340391576,1729173034575,-500.0,0.00010979,2]
[340391577,1729173034585,-242.1572811,0.00010979,2]
[340391578,1729173034594,-71662.68628247,0.0001098,3]
[340391579,1729173034604,-108460.95239304,0.0001098,2]
[340391580,1729173034616,-97160.83499994,0.0001098,2]
[340391581,1729173034627,-700.0,0.0001098,2]
[340391582,1729173034659,-1207.7052953,0.0001098,2]
[340391583,1729173034670,-2269.03418644,0.0001098,2]
[340391584,1729173034682,-380.0,0.0001098,2]
[340391585,1729173035423,500.0,0.00027,60]
[340391586,1729173038056,436.0,0.00027,60]
[340391587,1729173039081,-448.88340183,0.000105,2]
[340391589,1729173039093,-800.43820556,0.000105,2]
[340391591,1729173040523,-16554.30499261,0.000105,2]
[340391593,1729173040533,-1000.0,0.000106,2]
[340391594,1729173040543,-7500.0,0.0001088,2]
[340391595,1729173040553,-171.00963363,0.000109,2]
[340391596,1729173040566,-198670.81118019,0.0001098,2]
[340391597,1729173040575,-154.67394876,0.0001099,2]
[340391598,1729173040585,-154.67394876,0.0001099,2]
[340391599,1729173040594,-153.44838093,0.00010999,2]
[340391600,1729173040604,-362.959,0.00010999,2]
[340391601,1729173040613,-46019.79625111,0.00011,2]
[340391602,1729173040623,-316417.70780896,0.00011,2]
[340391603,1729173040632,-1000.0,0.00011,2]
[340391604,1729173040642,-1000.0,0.00011,2]
[340391605,1729173040651,-1000.0,0.00011,2]
[340391606,1729173040661,-1000.0,0.00011,2]
[340391607,1729173040671,-1000.0,0.00011,2]
[340391608,1729173040680,-1000.0,0.00011,2]
[340391609,1729173040689,-1000.0,0.00011,2]
[340391610,1729173040699,-1000.0,0.00011,2]
[340391611,1729173040709,-1000.0,0.00011,2]
[340391612,1729173040718,-1000.0,0.00011,2]
[340391613,1729173040727,-1000.0,0.00011,2]
[340391614,1729173040737,-1000.0,0.00011,2]
[340391615,1729173040747,-1000.0,0.00011,2]
[340391616,1729173040761,-1000.0,0.00011,2]
[340391617,1729173040772,-1000.0,0.00011,2]
[340391618,1729173040781,-1000.0,0.00011,2]
[340391619,1729173040791,-1000.0,0.00011,2]
[340391620,1729173040802,-1000.0,0.00011,2]
[340391621,1729173040814,-1000.0,0.00011,2]
[340391622,1729173040829,-1000.0,0.00011,2]
[340391623,1729173040839,-1000.0,0.00011,2]
[340391624,1729173040849,-1000.0,0.00011,2]
[340391625,1729173040859,-1000.0,0.00011,2]
[340391626,1729173040869,-1000.0,0.00011,2]
[340391627,1729173040878,-1000.0,0.00011,2]
[340391628,1729173040888,-1000.0,0.00011,2]
[340391629,1729173040898,-1000.0,0.00011,2]
[340391630,1729173040907,-1000.0,0.00011,2]
[340391631,1729173040917,-1000.0,0.00011,2]
[340391632,1729173040929,-1000.0,0.00011,2]
[340391633,1729173040938,-1000.0,0.00011,2]
[340391634,1729173040948,-1000.0,0.00011,2]
[340391635,1729173040958,-1000.0,0.00011,2]
[340391636,1729173040969,-1000.0,0.00011,2]
[340391637,1729173040979,-417.8212645,0.00011,2]
[340391638,1729173040990,-245664.57109529,0.00011,2]
[340391641,1729173043449,-343.2318375,0.00011,2]
[340391644,1729173043462,-233.7681625,0.00011,2]
[340391646,1729173043472,-88.60479449,0.00011,2]
[340391648,1729173043484,-822.174,0.00011,2]
[340391650,1729173043495,-286.09700001,0.00011,2]
[340391652,1729173043507,-1486.98740714,0.00011,2]
[340391654,1729173043517,-2164.33259285,0.00011,2]
[340391788,1729173044992,-4487.19318324,0.00011,2]
[340391790,1729173045004,-7932.72790264,0.00011,2]
[340391792,1729173045015,-33711.17749999,0.00011,2]
[340391793,1729173045028,-327.32863549,0.00011,2]
[340391796,1729173045039,-789057.27404032,0.00011,2]
[340391798,1729173045050,-709.54495651,0.00011,2]
[340391845,1729173045648,150.0,0.00027,60]
[340391995,1729173047937,500.0,0.00027,60]
[340392002,1729173048374,-0.10040661,0.00011,2]
[340392003,1729173048386,-402.331,0.00011,2]
[340392004,1729173048397,-13488.3228,0.00011,2]
[340392005,1729173049711,505.0,0.00027,60]
[340392006,1729173062869,200.0,0.00027,60]
[340392007,1729173089735,404.94,0.00010074,2]
[340392008,1729173099151,151.75,9.537e-05,2]
[340392009,1729173191822,500.0,0.00027,120]
[340392010,1729173198329,231.5892,0.000104,2]
[340392011,1729173199428,500.0,0.00027,120]
[340392012,1729173204925,500.0,0.00027,120]
[340392013,1729173211271,200.0,0.00027,120]
[340392014,1729173217293,7103.3012,0.000104,2]
[340392015,1729173218831,250.0,0.00010397,2]
[340392016,1729173256263,418.0,0.00027,60]
[340392017,1729173263386,500.0,0.00027,60]
[340392018,1729173269134,150.0,0.00027,60]
[340392019,1729173270810,500.0,0.00027,60]
[340392020,1729173272845,484.0,0.00027,60]
[340392021,1729173296868,1941.69291641,0.00010385,2]
[340392022,1729173310505,500.0,0.00010126,2]
[340392023,1729173310905,560.0,0.00010126,2]
[340392024,1729173328831,500.0,0.00027,60]
[340392025,1729173332219,500.0,0.00027,60]
[340392026,1729173333052,457.382313,0.00010398,2]
[340392028,1729173394938,538.37,0.00010324,2]
[340392029,1729173406849,158.84207561,0.00010351,2]
[340392030,1729173438122,182.75,0.00010283,2]
[340392031,1729173439474,500.0,0.00027,60]
[340392032,1729173444866,500.0,0.00027,60]
[340392033,1729173450832,150.0,0.00027,60]
[340392034,1729173452869,500.0,0.00027,60]
[340392035,1729173454538,464.0,0.00027,60]
[340392036,1729173479733,940.49,0.00010272,2]
[340392038,1729173492280,3591.21806728,0.00010385,2]
[340392040,1729173517984,250.0,0.0001024,2]
[340392042,1729173520403,23900.0,0.0001024,2]
[340392043,1729173549584,3634.2,0.0001028,2]
[340392044,1729173602502,407.75,0.0001028,2]
[340392045,1729173620156,500.0,0.00027,60]
[340392046,1729173625071,500.0,0.00027,60]
[340392047,1729173629287,150.0,0.00027,60]
[340392048,1729173631058,500.0,0.00027,60]
[340392049,1729173632712,445.0,0.00027,60]
[340392050,1729173633339,384.69,8.353e-05,2]
[340392051,1729173648762,900.0,0.0002,30]
[340392052,1729173676262,500.0,0.00027,60]
[340392053,1729173679291,150.0,0.00027,60]
[340392054,1729173739445,503.8031698,0.00027,60]
[340392055,1729173740063,500.0,0.00027,60]
[340392056,1729173740370,546.11647138,0.00027,60]
[340392057,1729173741683,500.0,0.00027,60]
[340392058,1729173742057,500.0,0.00027,60]
[340392059,1729173742135,500.0,0.00027,60]
[340392060,1729173742303,500.0,0.00027,60]
[340392061,1729173742445,565.76391756,0.00027,60]
[340392062,1729173742657,592.24,0.00027,60]
[340392063,1729173742948,500.0,0.00027,60]
[340392064,1729173743013,592.24,0.00027,60]
[340392065,1729173743254,500.0,0.00027,60]
[340392066,1729173743331,592.24,0.00027,60]
[340392067,1729173743580,500.0,0.00027,60]
[340392068,1729173743908,592.24,0.00027,60]
[340392069,1729173743965,500.0,0.00027,60]
[340392070,1729173744014,592.24,0.00027,60]
[340392071,1729173744190,500.0,0.00027,60]
[340392072,1729173744286,592.24,0.00027,60]
[340392073,1729173744766,224.76310406,0.00027,60]
[340392074,1729173744806,592.24,0.00027,60]
[340392075,1729173744904,592.24,0.00027,60]
[340392076,1729173745230,592.24,0.00027,60]
[340392077,1729173745833,592.24,0.00027,60]
[340392078,1729173746126,500.0,0.00027,60]
[340392079,1729173746167,592.24,0.00027,60]
[340392080,1729173746217,302.91833233,0.00027,60]
[340392081,1729173746493,500.0,0.00027,60]
[340392082,1729173746532,592.24,0.00027,60]
[340392083,1729173746826,592.24,0.00027,60]
[340392084,1729173746868,500.0,0.00027,60]
[340392085,1729173747131,592.24,0.00027,60]
[340392086,1729173747169,500.0,0.00027,60]
[340392087,1729173747448,592.24,0.00027,60]
[340392088,1729173747599,500.0,0.00027,60]
[340392089,1729173747755,592.24,0.00027,60]
[340392090,1729173747923,500.0,0.00027,60]
[340392091,1729173748073,592.24,0.00027,60]
[340392092,1729173748274,500.0,0.00027,60]
[340392093,1729173748384,592.24,0.00027,60]
[340392094,1729173748595,249.87297943,0.00027,60]
[340392095,1729173748702,592.24,0.00027,60]
[340392096,1729173749004,592.24,0.00027,60]
[340392097,1729173749241,500.0,0.00027,60]
[340392098,1729173749317,592.24,0.00027,60]
[340392099,1729173749562,500.0,0.00027,60]
[340392100,1729173749628,592.24,0.00027,60]
[340392101,1729173749685,561.52602867,0.00027,60]
[340392102,1729173750002,592.24,0.00027,60]
[340392103,1729173750646,592.37861296,0.00027,60]
[340392104,1729173751342,572.51922974,0.00027,60]
[340392105,1729173751507,500.0,0.00027,60]
[340392106,1729173751816,500.0,0.00027,60]
[340392107,1729173751870,670.97,0.00027,60]
[340392108,1729173752126,500.0,0.00027,60]
[340392109,1729173752166,593.02,0.00027,60]
[340392110,1729173752203,670.97,0.00027,60]
[340392111,1729173752442,500.0,0.00027,60]
[340392112,1729173752480,593.02,0.00027,60]
[340392113,1729173752525,670.97,0.00027,60]
[340392114,1729173752806,670.97,0.00027,60]
[340392115,1729173752843,593.02,0.00027,60]
[340392116,1729173753139,500.0,0.00027,60]
[340392117,1729173753177,593.02,0.00027,60]
[340392118,1729173753219,670.97,0.00027,60]
[340392119,1729173753259,500.0,0.00027,60]
[340392120,1729173753448,670.97,0.00027,60]
[340392121,1729173753490,593.02,0.00027,60]
[340392122,1729173753531,325.89467128,0.00027,60]
[340392123,1729173753574,500.0,0.00027,60]
[340392124,1729173753870,593.02,0.00027,60]
[340392125,1729173753910,500.0,0.00027,60]
[340392126,1729173754041,500.0,0.00027,60]
[340392127,1729173754108,670.97,0.00027,60]
[340392128,1729173754225,500.0,0.00027,60]
[340392129,1729173754353,500.0,0.00027,60]
[340392130,1729173754538,500.0,0.00027,60]
[340392131,1729173754599,670.97,0.00027,60]
[340392132,1729173754659,500.0,0.00027,60]
[340392133,1729173755247,500.0,0.00027,60]
[340392134,1729173755289,670.97,0.00027,60]
[340392135,1729173755328,500.0,0.00027,60]
[340392136,1729173755365,500.0,0.00027,60]
[340392137,1729173755474,670.97,0.00027,60]
[340392138,1729173755528,500.0,0.00027,60]
[340392139,1729173755583,500.0,0.00027,60]
[340392140,1729173755632,593.02,0.00027,60]
[340392141,1729173755681,500.0,0.00027,60]
[340392142,1729173755731,670.97,0.00027,60]
[340392143,1729173755785,500.0,0.00027,60]
[340392144,1729173755845,593.02,0.00027,60]
[340392145,1729173755930,500.0,0.00027,60]
[340392146,1729173755982,500.0,0.00027,60]
[340392147,1729173756029,670.97,0.00027,60]
[340392148,1729173756167,593.02,0.00027,60]
[340392149,1729173756240,288.64120976,0.00027,60]
[340392150,1729173756307,670.97,0.00027,60]
[340392151,1729173756406,500.0,0.00027,60]
[340392152,1729173756473,593.02,0.00027,60]
[340392153,1729173756597,500.0,0.00027,60]
[340392154,1729173756642,670.97,0.00027,60]
[340392155,1729173756730,500.0,0.00027,60]
[340392156,1729173756785,500.0,0.00027,60]
[340392157,1729173756834,593.02,0.00027,60]
[340392158,1729173756923,500.0,0.00027,60]
[340392159,1729173756973,670.97,0.00027,60]
[340392160,1729173757080,402.26806235,0.00027,60]
[340392161,1729173757127,500.0,0.00027,60]
[340392162,1729173757177,593.02,0.00027,60]
[340392163,1729173757239,500.0,0.00027,60]
[340392164,1729173757287,670.97,0.00027,60]
[340392165,1729173757405,500.0,0.00027,60]
[340392166,1729173757454,593.02,0.00027,60]
[340392167,1729173757578,670.97,0.00027,60]
[340392168,1729173757623,500.0,0.00027,60]
[340392169,1729173757749,342.01417839,0.00027,60]
[340392170,1729173757798,593.02,0.00027,60]
[340392171,1729173757878,670.97,0.00027,60]
[340392172,1729173757925,500.0,0.00027,60]
[340392173,1729173758103,593.02,0.00027,60]
[340392174,1729173758180,670.97,0.00027,60]
[340392175,1729173758245,500.0,0.00027,60]
[340392176,1729173758419,500.0,0.00027,60]
[340392177,1729173758466,593.02,0.00027,60]
[340392178,1729173758515,670.97,0.00027,60]
[340392179,1729173758570,500.0,0.00027,60]
[340392180,1729173758756,500.0,0.00027,60]
[340392181,1729173758808,593.02,0.00027,60]
[340392182,1729173758902,500.0,0.00027,60]
[340392183,1729173758975,670.97,0.00027,60]
[340392184,1729173759068,593.02,0.00027,60]
[340392185,1729173759120,500.0,0.00027,60]
[340392186,1729173759211,219.32811621,0.00027,60]
[340392187,1729173759279,670.97,0.00027,60]
[340392188,1729173759673,500.0,0.00027,60]
[340392189,1729173759727,593.02,0.00027,60]
[340392190,1729173759764,543.30295539,0.00027,60]
[340392191,1729173759807,670.97,0.00027,60]
[340392192,1729173759848,500.0,0.00027,60]
[340392193,1729173759886,593.02,0.00027,60]
[340392194,1729173759923,671.00337414,0.00027,60]
[340392195,1729173759998,500.0,0.00027,60]
[340392196,1729173760039,593.02,0.00027,60]
[340392197,1729173760336,500.0,0.00027,60]
[340392198,1729173760414,593.02,0.00027,60]
[340392199,1729173760733,593.02,0.00027,60]
[340392200,1729173761025,239.6236421,0.00027,60]
[340392201,1729173761065,322.13,0.00027,60]
[340392202,1729173761108,593.11460611,0.00027,60]
[340392203,1729173761332,322.13,0.00027,60]
[340392204,1729173762001,322.13,0.00027,60]
[340392205,1729173762133,500.0,0.00027,60]
[340392206,1729173762338,322.13,0.00027,60]
[340392207,1729173762464,500.0,0.00027,60]
[340392208,1729173762638,500.0,0.00027,60]
[340392209,1729173762790,500.0,0.00027,60]
[340392210,1729173762829,322.13,0.00027,60]
[340392211,1729173762937,500.0,0.00027,60]
[340392212,1729173763099,322.13,0.00027,60]
[340392213,1729173763139,500.0,0.00027,60]
[340392214,1729173763243,500.0,0.00027,60]